Cogmind - Beta 12 *** ADVENTURER MODE // 2023.11.07 @ 20:16:00 Player: Scott Result: Destroyed by H-77 Assassin with Coil Gun Performance ------------- Evolutions (6) 3000 Regions Visited (11) 2200 Robots Destroyed (25) 125 Value Destroyed (610) 610 Prototype IDs (4) 80 Alien Tech Used (0) 0 Bonus (4) 4 TOTAL SCORE: 6019 Bonus ------- High Alert Combat Kills 4 Cogmind --------- Core Integrity 0/1150 Matter 280/300 Energy 25/100 System Corruption 0% Temperature Cool (2) Movement Hovering (70) Location -4/Armory Parts ------- > --- POWER (2) -------- (None) > --- PROPULSION (6) --- Gyrokinetic Inverter > --- UTILITY (9) ------ (None) > --- WEAPON (2) ------- (None) > --- INVENTORY (5) ---- Light Deuterium Engine Gyrokinetic Inverter Cesium-ion Thruster Improved VTOL Module Scythe Peak State ------------ > --- POWER ------------ Light Deuterium Engine Light Nuclear Core > --- PROPULSION ------- Cesium-ion Thruster Improved VTOL Module Improved Cesium-ion Thruster Improved Cesium-ion Thruster Improved Cesium-ion Thruster > --- UTILITY ---------- Advanced Cooling System Advanced Weight Redist. System Improved Sensor Array Improved Propulsion Shielding Improved Light Armor Plating Improved Shield Generator Advanced Force Field Hacking Suite > --- WEAPON ----------- Katana Scythe > --- INVENTORY -------- Light Deuterium Engine Cesium-ion Thruster Improved VTOL Module Scythe [Rating: 68] Favorites ----------- Power Light Nuclear Core Engine Light Deuterium Engine Power Core Light Nuclear Core Reactor Antimatter Reactor Propulsion Cesium-ion Thruster Leg Aluminum Leg Hover Unit Gyrokinetic Inverter Flight Unit Cesium-ion Thruster Utility Improved Light Armor Plating Device Improved Sensor Array Storage Small Storage Unit Hackware Hacking Suite Protection Improved Light Armor Plating Weapon Scythe Energy Gun Small Laser Ballistic Gun Light Assault Rifle Impact Weapon Mace Slashing Weapon Scythe Build | -11 -10 -10 -9 -8 -7 -6 -5 -5 -5 -4 -4 ------- Run | Jun Mat Min Mat Mat Fac Fac Fac Upp Upp Fac Arm Slots Evolved 12 | . . . 2 2 2 2 2 . . 2 . Power 1 | . . . . . . 1 . . . . . Propulsion 4 | . . . 2 1 . . 1 . . . . Utility 7 | . . . . 1 2 1 1 . . 2 . Weapon . | . . . . . . . . . . . . Parts Attached 66 | 6 9 1 8 8 9 13 4 . . 2 6 Power 6 | 1 . . 1 . . 1 1 . . 1 1 Engine 3 | 1 . . . . . 1 1 . . . . Core 2 | . . . 1 . . . . . . 1 . Reactor 1 | . . . . . . . . . . . 1 Propulsion 29 | 2 4 . 4 6 3 7 1 . . . 2 Treads . | . . . . . . . . . . . . Leg 4 | 2 2 . . . . . . . . . . Wheel . | . . . . . . . . . . . . Hover 2 | . . . . . . . . . . . 2 Flight 23 | . 2 . 4 6 3 7 1 . . . . Utility 20 | 1 3 1 1 2 2 4 2 . . 1 3 Device 11 | . . . 1 2 . 3 2 . . 1 2 Storage 1 | 1 . . . . . . . . . . . Processor . | . . . . . . . . . . . . Hackware 1 | . . . . . 1 . . . . . . Protection 7 | . 3 1 . . 1 1 . . . . 1 Artifact . | . . . . . . . . . . . . Weapon 11 | 2 2 . 2 . 4 1 . . . . . Energy Gun 2 | 1 1 . . . . . . . . . . Energy Cannon . | . . . . . . . . . . . . Ballistic Gun 5 | 1 1 . 2 . 1 . . . . . . Ballistic Cannon . | . . . . . . . . . . . . Launcher . | . . . . . . . . . . . . Special Weapon . | . . . . . . . . . . . . Impact Weapon 1 | . . . . . 1 . . . . . . Slashing Weapon 3 | . . . . . 2 1 . . . . . Piercing Weapon . | . . . . . . . . . . . . Special Melee Weapon . | . . . . . . . . . . . . Unidentified Prototypes 4 | . . . . 1 1 2 . . . . . Parts Lost 24 | . 1 . . . . 1 . 2 . . 20 Power 3 | . . . . . . . . . . . 3 Propulsion 6 | . . . . . . . . . . . 6 Utility 13 | . 1 . . . . 1 . 2 . . 9 Weapon 2 | . . . . . . . . . . . 2 Highest Loss Streak 20 | . 1 . . . . 1 . 2 . . 20 To Critical Strikes . | . . . . . . . . . . . . Average Slot Usage (%) 92 | . 96 100 97 96 97 99 91 92 82 78 37 Engine 7 | . 14 14 4 . . 6 9 11 11 5 1 Core 3 | . . . 6 9 7 6 . . . 5 1 Leg 7 | . 27 28 2 . . . . . . . . Flight 23 | . . . 39 41 37 32 29 29 29 26 10 Device 10 | . . . 4 18 15 13 20 22 17 21 9 Storage 4 | . 14 14 6 . . . . . . . . Hackware 2 | . . . . . 5 6 5 5 5 5 3 Protection 12 | . 11 14 11 9 14 19 11 10 5 5 2 Energy Gun 4 | . 13 14 6 . . . . . . . . Ballistic Gun 7 | . 14 14 15 18 5 . . . . . . Slashing Weapon 5 | . . . . . 5 13 11 11 11 10 3 Naked Turns . | . . . . . . . . . . . . Heaviest Build 41 | 10 13 13 15 15 18 25 25 25 20 24 41 Greatest Support 37 | 20 20 20 20 24 25 28 37 37 28 28 28 Greatest Overweight (x) 7 | . 1 . . . . 1 . . . . 7 Average Overweight (x) . | . . . . . . . . . . . . Largest Inventory Capacity 8 | 8 8 8 8 5 5 5 5 5 5 5 5 Average Capacity 6 | 7 8 8 6 5 5 5 5 5 5 5 5 Most Carried 8 | 8 8 8 8 5 5 5 5 5 5 5 5 Average Carried 5 | 4 7 7 6 4 4 4 4 4 5 4 4 Final Capacity 8 | 8 8 8 5 5 5 5 5 5 5 5 5 Final Carried 8 | 4 8 8 5 5 5 4 5 5 5 5 5 Class Distribution -------------------- 43% | Hacker-Sprinter 31% | Mutant 20% | Sprinter 5% | Hacker-Mutant Dominant Class ---------------- Mutant | -10/Materials Mutant | -10/Mines Sprinter | -9/Materials Sprinter | -8/Materials Hacker-Sprinter | -7/Factory Hacker-Sprinter | -6/Factory Hacker-Sprinter | -5/Factory Hacker-Sprinter | -5/Upper Caves Hacker-Sprinter | -5/Upper Caves Hacker-Sprinter | -4/Factory Hacker-Mutant | -4/Armory Resources | -11 -10 -10 -9 -8 -7 -6 -5 -5 -5 -4 -4 ----------- Run | Jun Mat Min Mat Mat Fac Fac Fac Upp Upp Fac Arm Matter Collected 916 | 201 174 21 101 138 56 120 . 97 . . 8 Remotely . | . . . . . . . . . . . . Salvage Created 939 | . 432 . 132 43 . 235 . 97 . . . Parts 50 | . 30 . 5 1 . 9 . 5 . . . Haulers Intercepted 4 | . . . 2 1 . 1 . . . . . Recyclers Shooed 1 | . 1 . . . . . . . . . . Parts Field Recycled . | . . . . . . . . . . . . Retrieved Matter . | . . . . . . . . . . . . Parts Self-Destructed 4 | . . . . . . . . 4 . . . Prevented . | . . . . . . . . . . . . Kills | -11 -10 -10 -9 -8 -7 -6 -5 -5 -5 -4 -4 ------- Run | Jun Mat Min Mat Mat Fac Fac Fac Upp Upp Fac Arm Combat Hostiles Destroyed 18 | . 11 . 1 . . 2 . 4 . . . Melee 6 | . . . . . . 2 . 4 . . . Guns 12 | . 11 . 1 . . . . . . . . Classes Destroyed 6 | . 4 . 1 . . 1 . . . . . Worker 1 | . 1 . . . . . . . . . . Hauler 4 | . . . 2 1 . 1 . . . . . Watcher 2 | . 1 . . . . 1 . . . . . Swarmer 7 | . 3 . . . . . . 4 . . . Cutter 1 | . . . . . . 1 . . . . . Grunt 10 | . 8 . 1 . . 1 . . . . . Best Kill Streak 4 | . 3 . 2 1 . 1 . 4 . . . Combat Bots Only 4 | . 3 . 1 . . 1 . 4 . . . Max Kills in Single Turn 2 | . 1 . 1 1 . 1 . 2 . . . Gunslinging . | . . . . . . . . . . . . Exploded . | . . . . . . . . . . . . Melee 2 | . . . . . . 1 . 2 . . . Uniques/NPCs Destroyed . | . . . . . . . . . . . . Combat | -11 -10 -10 -9 -8 -7 -6 -5 -5 -5 -4 -4 -------- Run | Jun Mat Min Mat Mat Fac Fac Fac Upp Upp Fac Arm Damage Taken 3398 | . 344 . 42 60 50 619 . 49 16 106 2112 Core 1231 | . 41 . . . 6 20 . 6 . 44 1114 Absorbed by Shields 376 | . . . . 22 19 164 . 20 . 40 111 Redirected to Shielding 217 | . . . . . 8 108 . . . . 101 Regen/Repaired (Parts) 23 | . . . . . . 23 . . . . . Core Remaining (%) 96 | 100 . 83 100 100 99 97 . . 99 . . Volleys Fired 67 | . 41 . 18 7 1 . . . . . . Largest 2 | . 2 . 2 2 1 . . . . . . Hottest 60 | . 60 . 60 43 23 . . . . . . Shots Fired 133 | . 82 . 36 14 1 . . . . . . Gun 133 | . 82 . 36 14 1 . . . . . . Cannon . | . . . . . . . . . . . . Launcher . | . . . . . . . . . . . . Special . | . . . . . . . . . . . . Kinetic 81 | . 41 . 25 14 1 . . . . . . Thermal 52 | . 41 . 11 . . . . . . . . Explosive . | . . . . . . . . . . . . Electromagnetic . | . . . . . . . . . . . . Robot Hit Streak 29 | . 29 . 19 14 . . . . . . . Robot Miss Streak 4 | . 2 . 2 4 . . . . . . . Penetration Max . | . . . . . . . . . . . . Secondary Targets 1 | . 1 . . . . . . . . . . Max Gunslinging Chain 1 | . 1 . . . . . . . . . . Shots Hit Robots 144 | . 74 . 28 12 . 26 . 4 . . . Core Hits 49 | . 26 . 9 3 . 7 . 4 . . . Critical Kills . | . . . . . . . . . . . . Critical Parts Destroyed 2 | . 1 . . 1 . . . . . . . Critical Strikes 4 | . 1 . . 1 . 2 . . . . . Destroy 2 | . 1 . . 1 . . . . . . . Sever 2 | . . . . . . 2 . . . . . Melee Attacks 37 | . . . . . 2 28 . 4 . 1 2 Impact 2 | . . . . . 2 . . . . . . Slashing 35 | . . . . . . 28 . 4 . 1 2 Piercing . | . . . . . . . . . . . . Sneak Attacks 2 | . . . . . . 2 . . . . . Combat Hostiles . | . . . . . . . . . . . . Follow-up Attacks 4 | . . . . . . 3 . 1 . . . Damage Inflicted 2199 | . 722 . 322 156 . 855 . 144 . . . Guns 1200 | . 722 . 322 156 . . . . . . . Cannons . | . . . . . . . . . . . . Explosions . | . . . . . . . . . . . . Melee 999 | . . . . . . 855 . 144 . . . Ramming . | . . . . . . . . . . . . Kinetic 715 | . 325 . 234 156 . . . . . . . Thermal 485 | . 397 . 88 . . . . . . . . Explosive . | . . . . . . . . . . . . Electromagnetic . | . . . . . . . . . . . . Impact . | . . . . . . . . . . . . Slashing 999 | . . . . . . 855 . 144 . . . Piercing . | . . . . . . . . . . . . Highest Corruption 1 | . . . . . . 1 . . . . . Average Corruption 1 | . . . . . . 1 . . . . . Corruption Purged . | . . . . . . . . . . . . Corruption Blocked . | . . . . . . . . . . . . Overload Shots . | . . . . . . . . . . . . Overflow Damage 25 | . . . . . . 25 . . . . . Projectiles . | . . . . . . . . . . . . Explosions . | . . . . . . . . . . . . Melee 25 | . . . . . . 25 . . . . . Knockbacks . | . . . . . . . . . . . . Impact . | . . . . . . . . . . . . Kinetic . | . . . . . . . . . . . . Secondary . | . . . . . . . . . . . . Self-Inflicted Damage . | . . . . . . . . . . . . Shots . | . . . . . . . . . . . . Rammed . | . . . . . . . . . . . . Targets Rammed . | . . . . . . . . . . . . Kicked . | . . . . . . . . . . . . Crushed . | . . . . . . . . . . . . Highest Temperature 412 | . 255 . 151 20 55 412 30 . . . . Average Temperature 109 | . 82 . 60 10 28 159 19 . . . . Received Heat Transfer 589 | . 243 . 30 38 14 96 . . 9 18 141 Effects 7 | . . . . . . 7 . . . . . Shutdowns 4 | . . . . . . 4 . . . . . Interference 2 | . . . . . . 2 . . . . . Matter Decay 1 | . . . . . . 1 . . . . . Siege Activations . | . . . . . . . . . . . . Robots Corrupted . | . . . . . . . . . . . . Combat Hostiles . | . . . . . . . . . . . . Parts Fried . | . . . . . . . . . . . . Impact Corruptions . | . . . . . . . . . . . . Robots Melted . | . . . . . . . . . . . . Combat Hostiles . | . . . . . . . . . . . . Parts Melted . | . . . . . . . . . . . . Heat Transferred 1100 | . 900 . 200 . . . . . . . . Parts Sabotaged . | . . . . . . . . . . . . Parts Stolen . | . . . . . . . . . . . . Parts Stripped . | . . . . . . . . . . . . Power Chain Reactions . | . . . . . . . . . . . . Missiles Intercepted . | . . . . . . . . . . . . Alert | -11 -10 -10 -9 -8 -7 -6 -5 -5 -5 -4 -4 ------- Run | Jun Mat Min Mat Mat Fac Fac Fac Upp Upp Fac Arm Peak Influence 525 | . 277 91 138 217 310 525 208 . . 140 88 Initial 130 | . . 91 30 . 84 130 109 . . 93 59 Average 142 | . 138 91 85 63 190 297 133 . . 108 45 Maximum Alert Level 2 | . 1 . . 1 1 2 1 . . . . Low Security (%) 75 | 100 61 100 100 99 46 36 96 . . 100 100 Level 1 19 | . 38 . . . 53 35 3 . . . . Level 2 5 | . . . . . . 28 . . . . . Level 3 . | . . . . . . . . . . . . Level 4 . | . . . . . . . . . . . . Level 5 . | . . . . . . . . . . . . High Security . | . . . . . . . . . . . . Max Security . | . . . . . . . . . . . . Squads Dispatched 11 | . 1 1 1 . 1 6 . . . . 1 Investigation 3 | . 1 1 . . . 1 . . . . . Extermination 1 | . . . . . . 1 . . . . . Reinforcement 7 | . . . 1 . 1 4 . . . . 1 Assault . | . . . . . . . . . . . . Garrison . | . . . . . . . . . . . . Intercept . | . . . . . . . . . . . . Searches Triggered 1 | . . . . . . 1 . . . . . Construction Impeded . | . . . . . . . . . . . . Haulers Reinforced 1 | . . . . . . 1 . . . . . Active Scanning Responses . | . . . . . . . . . . . . Cargo Convoy Interrupts . | . . . . . . . . . . . . Stealth | -11 -10 -10 -9 -8 -7 -6 -5 -5 -5 -4 -4 --------- Run | Jun Mat Min Mat Mat Fac Fac Fac Upp Upp Fac Arm Distress Signals 5 | . . . . . 2 1 . 1 . . 1 Communications Jammed . | . . . . . . . . . . . . Distress Signals . | . . . . . . . . . . . . Times Spotted 119 | . 13 . 7 8 17 26 6 10 1 12 19 Peak Tracking Total 14 | . 5 . 4 6 8 7 6 5 4 12 14 Tactical Retreats 23 | . . . . 2 5 9 1 2 . . 4 Traps | -11 -10 -10 -9 -8 -7 -6 -5 -5 -5 -4 -4 ------- Run | Jun Mat Min Mat Mat Fac Fac Fac Upp Upp Fac Arm Traps Triggered 5 | . 1 . . . 1 . . . . . 3 Indirectly . | . . . . . . . . . . . . Trap Hack Attempts . | . . . . . . . . . . . . Triggered . | . . . . . . . . . . . . Disarmed . | . . . . . . . . . . . . Reprogrammed . | . . . . . . . . . . . . Reused . | . . . . . . . . . . . . Traps Extracted . | . . . . . . . . . . . . Installed . | . . . . . . . . . . . . Triggered . | . . . . . . . . . . . . Machines | -11 -10 -10 -9 -8 -7 -6 -5 -5 -5 -4 -4 ---------- Run | Jun Mat Min Mat Mat Fac Fac Fac Upp Upp Fac Arm Machines Disabled 1 | . . . . . . . . . . . 1 Max in Single Turn 1 | . . . . . . . . . . . 1 Machines Repaired . | . . . . . . . . . . . . Machines Sabotaged . | . . . . . . . . . . . . Overloaded Fab Kills . | . . . . . . . . . . . . Hacking | -11 -10 -10 -9 -8 -7 -6 -5 -5 -5 -4 -4 --------- Run | Jun Mat Min Mat Mat Fac Fac Fac Upp Upp Fac Arm Machines Accessed 37 | . 4 1 3 7 6 8 5 1 . . 2 Terminals 24 | . 3 . 3 5 4 4 3 . . . 2 Fabricators 3 | . . . . . 1 2 . . . . . Repair Stations 2 | . . . . . . 1 1 . . . . Recycling Units 3 | . 1 . . 1 . 1 . . . . . Scanalyzers 3 | . . . . 1 1 . 1 . . . . Garrison Access . | . . . . . . . . . . . . Total Hacks 56 | . 7 1 5 9 9 13 8 1 . . 3 Successful 28 | . 3 1 5 5 1 7 2 1 . . 3 Failed 28 | . 4 . . 4 8 6 6 . . . . Catastrophic 8 | . 1 . . 2 2 1 2 . . . . Database Lockouts . | . . . . . . . . . . . . Manual 23 | . 3 . 3 5 3 4 3 . . . 2 Terminals 31 | . 5 . 5 6 5 4 3 . . . 3 Fabricators 5 | . . . . . 2 3 . . . . . Repair Stations 7 | . . . . . . 4 3 . . . . Recycling Units 5 | . 2 . . 1 . 2 . . . . . Scanalyzers 6 | . . . . 2 2 . 2 . . . . Garrison Access . | . . . . . . . . . . . . Terminal Hacks 17 | . 2 1 5 2 1 1 1 1 . . 3 Part Schematic 1 | . 1 . . . . . . . . . . Open Door 2 | . . 1 . . . . . 1 . . . Level Access Points 2 | . . . 1 . . . . . . . 1 Emergency Access Points 3 | . . . . 1 . 1 . . . . 1 Fabricator Index 2 | . . . 1 1 . . . . . . . Scanalyzer Index 1 | . . . . . . . 1 . . . . Alert Level 1 | . . . 1 . . . . . . . . Unreport Threat 1 | . . . 1 . . . . . . . . Locate Traps 2 | . 1 . . . 1 . . . . . . Security Status 1 | . . . 1 . . . . . . . . Registered Components 1 | . . . . . . . . . . . 1 Fabricator Hacks 3 | . . . . . . 3 . . . . . Load Schematic 1 | . . . . . . 1 . . . . . Build 2 | . . . . . . 2 . . . . . Repair Station Hacks 3 | . . . . . . 2 1 . . . . Scan Component 2 | . . . . . . 1 1 . . . . Repair 1 | . . . . . . 1 . . . . . Recycling Unit Hacks 3 | . 1 . . 1 . 1 . . . . . Retrieve Components 3 | . 1 . . 1 . 1 . . . . . Scanalyzer 2 | . . . . 2 . . . . . . . Insert Component 1 | . . . . 1 . . . . . . . Analyze 1 | . . . . 1 . . . . . . . Garrison Access Hacks . | . . . . . . . . . . . . Unauthorized Hacks . | . . . . . . . . . . . . Terminals . | . . . . . . . . . . . . Fabricators . | . . . . . . . . . . . . Repair Stations . | . . . . . . . . . . . . Recycling Units . | . . . . . . . . . . . . Scanalyzers . | . . . . . . . . . . . . Garrison Access . | . . . . . . . . . . . . Data Cores Recovered . | . . . . . . . . . . . . Used . | . . . . . . . . . . . . Hacking Detections 29 | . 3 . 2 5 6 7 5 . . . 1 Full Trace Events 1 | . . . . . . 1 . . . . . Feedback Events . | . . . . . . . . . . . . Feedback Blocked . | . . . . . . . . . . . . Robot Schematics Acquired . | . . . . . . . . . . . . Robots Built . | . . . . . . . . . . . . Authchips . | . . . . . . . . . . . . Time . | . . . . . . . . . . . . Total Robot Build Rating . | . . . . . . . . . . . . Part Schematics Acquired 2 | . 1 . . 1 . . . . . . . Parts Built 4 | . . . . . . 4 . . . . . Authchips . | . . . . . . . . . . . . Time 120 | . . . . . . 120 . . . . . Total Part Build Rating 16 | . . . . . . 16 . . . . . Parts Repaired 1 | . . . . . . 1 . . . . . Time 19 | . . . . . . 19 . . . . . Parts Recycled . | . . . . . . . . . . . . Recycled Matter . | . . . . . . . . . . . . Retrieved Matter . | . . . . . . . . . . . . Retrieved Components 14 | . 9 . . 3 . 2 . . . . . Parts Scanalyzed 1 | . . . . 1 . . . . . . . Part Schematics Acquired 1 | . . . . 1 . . . . . . . Parts Damaged . | . . . . . . . . . . . . Bothacking | -11 -10 -10 -9 -8 -7 -6 -5 -5 -5 -4 -4 ------------ Run | Jun Mat Min Mat Mat Fac Fac Fac Upp Upp Fac Arm Used RIF Installer . | . . . . . . . . . . . . Robots Hacked . | . . . . . . . . . . . . Non-combat . | . . . . . . . . . . . . Combat . | . . . . . . . . . . . . Robot Hacks Applied . | . . . . . . . . . . . . Relay Couplers Released . | . . . . . . . . . . . . Fabnet Peak Effective % . | . . . . . . . . . . . . Robots Rewired . | . . . . . . . . . . . . Allies Hacked . | . . . . . . . . . . . . Hacks Repelled . | . . . . . . . . . . . . Allies | -11 -10 -10 -9 -8 -7 -6 -5 -5 -5 -4 -4 -------- Run | Jun Mat Min Mat Mat Fac Fac Fac Upp Upp Fac Arm Total Allies . | . . . . . . . . . . . . Largest Group . | . . . . . . . . . . . . Highest-Rated Group . | . . . . . . . . . . . . Highest-Rated Ally . | . . . . . . . . . . . . Total Orders . | . . . . . . . . . . . . Ally Attacks . | . . . . . . . . . . . . Total Damage . | . . . . . . . . . . . . Kills . | . . . . . . . . . . . . Allies Corrupted . | . . . . . . . . . . . . Allies Melted . | . . . . . . . . . . . . Intel | -11 -10 -10 -9 -8 -7 -6 -5 -5 -5 -4 -4 ------- Run | Jun Mat Min Mat Mat Fac Fac Fac Upp Upp Fac Arm Robot Analysis Total . | . . . . . . . . . . . . Derelict Logs Recovered 2 | . . . . . . . . 1 1 . . Drone Launches . | . . . . . . . . . . . . Drone Recoveries . | . . . . . . . . . . . . Exploration | -11 -10 -10 -9 -8 -7 -6 -5 -5 -5 -4 -4 ------------- Run | Jun Mat Min Mat Mat Fac Fac Fac Upp Upp Fac Arm Turns Passed 2203 | 67 333 247 179 276 195 408 109 148 48 55 138 Spaces Moved 4581 | 48 124 203 287 651 656 939 440 581 195 212 245 Core 102 | 9 . . . . . . . . . . 93 Treads . | . . . . . . . . . . . . Legs 379 | 39 123 203 14 . . . . . . . . Wheels . | . . . . . . . . . . . . Hover 44 | . . . . . . . . . . . 44 Flight 4056 | . 1 . 273 651 656 939 440 581 195 212 108 Fastest Speed 23 | 50 117 120 31 24 23 23 23 23 23 23 23 Average Speed 33 | 106 119 120 35 27 25 23 23 23 23 23 45 Slowest Speed 400 | 120 120 120 120 31 26 103 23 23 23 23 400 Overloaded Moves . | . . . . . . . . . . . . Propulsion Burnouts . | . . . . . . . . . . . . Robots Hopped 24 | . . . 3 5 4 2 5 . . 5 . Cave-ins Triggered . | . . . . . . . . . . . . Exploration Rate (%) 30 | 3 35 48 30 43 25 34 15 72 17 11 31 Regions Visited 11 Branch Regions 4 Pre-discovered Areas 2 | . . . . . . . . 1 1 . . Known Exits Taken 1 | . . . 1 . . . . . . . . Unknown Exits Taken 10 | 1 1 1 . 1 1 1 1 1 1 1 . Scrap Searched 3 | . . 2 . . . . . 1 . . . Spaces Dug 3 | . . . . . 2 . . . . 1 . Terrain Destroyed 3 | . . . . . 2 . . . . 1 . Melee 3 | . . . . . 2 . . . . 1 . Projectile . | . . . . . . . . . . . . AOE . | . . . . . . . . . . . . Terrain Rammed . | . . . . . . . . . . . . Walls Destroyed . | . . . . . . . . . . . . Machines Disabled . | . . . . . . . . . . . . Actions | -11 -10 -10 -9 -8 -7 -6 -5 -5 -5 -4 -4 --------- Run | Jun Mat Min Mat Mat Fac Fac Fac Upp Upp Fac Arm Total 5041 | 63 237 207 329 733 676 1089 442 590 197 210 268 Wait 221 | . 40 1 8 63 . 101 . 5 3 . . Move 4525 | 47 123 202 280 640 647 935 429 580 194 203 245 Hop 21 | . . . 3 5 4 1 5 . . 3 . Pick Up 50 | 10 14 1 5 3 5 5 3 1 . 1 2 Fast Attach 15 | . . . . 2 6 3 . . . . 4 Attach 27 | 6 5 . 2 2 2 4 3 . . 1 2 Detach 4 | . 2 . . 1 . . 1 . . . . Swap 24 | . 4 1 6 4 1 6 1 . . 1 . Drop 41 | . 8 2 7 6 8 9 . 1 . . . Fire 67 | . 41 . 18 7 1 . . . . . . Melee 32 | . . . . . 2 25 . 3 . 1 1 Ram . | . . . . . . . . . . . . Kick . | . . . . . . . . . . . . Crush . | . . . . . . . . . . . . Escape Stasis 14 | . . . . . . . . . . . 14 Rewire . | . . . . . . . . . . . . Trap . | . . . . . . . . . . . . Miscellaneous . | . . . . . . . . . . . . Route ------- -11/Junkyard -10/Materials -10/Mines -9/Materials (discovered 3 exits: *Mat x3) -8/Materials -7/Factory -6/Factory -5/Factory -5/Upper Caves -5/Upper Caves -4/Factory -4/Armory (discovered 2 exits: Res x2) History --------- Turn | Location | Event 23 | -11/Junkyard | Discovered new exit (range 15) 68 | -11/Junkyard | Entered Materials 206 | -10/Materials | Discovered new exit (range 16) 319 | -10/Materials | Build established: Mutant 401 | -10/Materials | Entered Mines 450 | -10/Mines | Discovered new exit (range 11) 477 | -10/Mines | Met a Derelict bent on vengeance 540 | -10/Mines | Met a Derelict shopkeep closing up shop 648 | -10/Mines | Entered Materials 648 | -9/Materials | Evolved 2 slots: Propulsion x2 810 | -9/Materials | Discovered new exit (range 5) 819 | -9/Materials | Identified exit to Materials 827 | -9/Materials | Entered another Materials area 827 | -8/Materials | Evolved 2 slots: Propulsion x1, Utility x1 949 | -8/Materials | Discovered new exit (range 4) 955 | -8/Materials | Build established: Sprinter 1103 | -8/Materials | Entered Factory 1103 | -7/Factory | Evolved 2 slots: Utility x2 1294 | -7/Factory | Discovered new exit (range 14) 1298 | -7/Factory | Entered another Factory area 1298 | -6/Factory | Evolved 2 slots: Power x1, Utility x1 1323 | -6/Factory | Repaired Cesium-ion Thruster 1411 | -6/Factory | Fabricated Cesium-ion Thruster (x2) 1560 | -6/Factory | Fabricated Nuclear Pulse Thruster? 1645 | -6/Factory | Build established: Hacker-Sprinter 1647 | -6/Factory | Discovered new exit (range 10) 1648 | -6/Factory | Search patrols dispatched 1706 | -6/Factory | Entered another Factory area 1706 | -5/Factory | Evolved 2 slots: Propulsion x1, Utility x1 1813 | -5/Factory | Discovered new exit (range 12) 1815 | -5/Factory | Entered Upper Caves 1958 | -5/Upper Caves | Discovered new exit (range 13) 1963 | -5/Upper Caves | Entered another Upper Caves area 1964 | -5/Upper Caves | Encountered a Warlord checkpoint 1981 | -5/Upper Caves | Discovered new exit (range 15) 1984 | -5/Upper Caves | Learned location of Armory (-4) 2002 | -5/Upper Caves | Ambushed by wild Derelicts 2011 | -5/Upper Caves | Entered Factory 2011 | -4/Factory | Evolved 2 slots: Utility x2 2056 | -4/Factory | Spotted B-86 Titan 2064 | -4/Factory | Discovered new exit (range 12) 2066 | -4/Factory | Entered Armory 2093 | -4/Armory | Spotted B-86 Titan 2158 | -4/Armory | Identified exit to Research 2177 | -4/Armory | Core integrity fell below 50% 2201 | -4/Armory | Core integrity fell below 20% 2204 | -4/Armory | Destroyed by H-77 Assassin with Coil Gun Last Messages --------------- 02192_ Slug penetrates Fabricator. 02194_ Triggered Shock Trap. 02194_ The floor emits a surge of raw power. 02194_ Penetrated by Slug. 02194_ Slug penetrates Wall. 02194_ Penetrated by Slug. 02194_ Slug penetrates Wall. 02195_ Slug penetrates Fabricator. 02195_ Penetrated by Slug. 02195_ Slug penetrates Fabricator. 02195_ Slug penetrates Wall. 02198_ Slug penetrates Fabricator. 02198_ Slug penetrates Wall. 02198_ Penetrated by Slug. 02199_ Gyrokinetic Inverter destroyed. 02201_ Adv. Cloaking Device destroyed. 02201_ Penetrated by Slug. 02202_ Slug penetrates Wall. 02204_ Penetrated by Slug. 02204_ Slug penetrates Wall. Map ----- +----------------------------------------------------+ | # ############### ##### | | """" ## ##?????????????# #???# """"" | | ## #????###########+#???# """"" | | #+##### ###?# ! ! / #???#######"" """"" | | # #?# !! #?????????#" """"" | | # ### !! #?????????#"F | | + + ! "" #?????????#"" | | [[ # % ### """ #?????????# | | [[ # #?# """ +????????? | | ###"+#### #????????##### | | ]] ## # """ """ #????????????# | | ]] ## + """ """ #????????????# | | ## "T" # """ """ #????????????###" ####### | | ##### # #???????????????"T#?????? | | ????######### #????????????????#??????? | | ????????????#+##/######;############ ????????????? | | ????????????? # ???????????? | | ?????????????? + ????????????? | | ???????????????# """" #####??????????????????? | | ???????????????# ""F"h Y#??????????????????????? | | ???????????????# "" h #??????????????????????? | | ???????????????# #??????????????????????? | | ???????????????# |[ #??????????????????????? | | ???????????????# ! ! |[ #??????????????????????? | | ?????????????### !!! |= ##### # ????????????? | | ?????????????# *! @ ! + +???????????? | | ?????????????# Y Yh Y + ????????????? | | ?????????????# gg #####! # ??????????????? | | ?????????????# #####+;####????#?